fUST/lending_fUST_20260218
["ID","MTS","AMOUNT","RATE_DAILY","PERIOD"]
[405890771,1771398637808,-300.0,0.00013536,2]
[405890773,1771398637817,-300.0,0.00013673,2]
[405890775,1771398637827,-600.0,0.00014221,2]
[405890777,1771398637836,-900.0,0.00014768,2]
[405890779,1771398637845,-502.49662358,0.00014795,2]
[405890781,1771398637854,-1200.0,0.00015316,2]
[405890783,1771398637864,-250.0,0.00015389,2]
[405890785,1771398637873,-855.10392395,0.00015864,2]
[405890787,1771398637883,-989.81705511,0.00016438,2]
[405890789,1771398637892,-623.61677794,0.00016438,2]
[405890791,1771398637901,-1073.29,0.00016438,2]
[405890793,1771398637910,-500.0,0.00016438,2]
[405890795,1771398637920,-550.47565695,0.00016438,2]
[405890797,1771398637929,-1000.0,0.00016438,2]
[405890799,1771398637939,-227.14551065,0.00016438,2]
[405890801,1771398637947,-500.0,0.00016438,2]
[405890803,1771398637957,-500.0,0.00016438,2]
[405890805,1771398637966,-500.0,0.00016438,2]
[405890807,1771398637977,-500.0,0.00016438,2]
[405890809,1771398637987,-500.0,0.00016438,2]
[405890811,1771398637996,-500.0,0.00016438,2]
[405890813,1771398638005,-500.0,0.00016438,2]
[405890815,1771398638014,-500.0,0.00016438,2]
[405890817,1771398638023,-500.0,0.00016438,2]
[405890819,1771398638032,-500.0,0.00016438,2]
[405890820,1771398638041,-500.0,0.00016438,2]
[405890822,1771398638050,-649.13659944,0.00016438,2]
[405890823,1771398638060,-500.0,0.00016438,2]
[405890824,1771398638069,-500.0,0.00016438,2]
[405890825,1771398638079,-4289.2,0.00016438,2]
[405890826,1771398638088,-500.0,0.00016438,2]
[405890827,1771398638097,-500.0,0.00016438,2]
[405890828,1771398638106,-500.0,0.00016438,2]
[405890829,1771398638115,-551.95083234,0.00016438,2]
[405890830,1771398638125,-187.68632068,0.00016438,2]
[405890831,1771398638136,-500.0,0.00016438,2]
[405890832,1771398638145,-500.0,0.00016438,2]
[405890833,1771398638155,-232.7806649,0.00016438,2]
[405890834,1771398638163,-500.0,0.00016438,2]
[405890835,1771398638175,-500.0,0.00016438,2]
[405890836,1771398638184,-500.0,0.00016438,2]
[405890837,1771398638193,-1434.07,0.00016438,2]
[405890838,1771398638202,-500.0,0.00016438,2]
[405890839,1771398638212,-500.0,0.00016438,2]
[405890840,1771398638222,-500.0,0.00016438,2]
[405890841,1771398638231,-1575.72,0.00016438,2]
[405890842,1771398638241,-500.0,0.00016438,2]
[405890843,1771398638249,-2299.18,0.00016438,2]
[405890844,1771398638259,-500.0,0.00016438,2]
[405890845,1771398638268,-500.0,0.00016438,2]
[405890846,1771398638277,-530.04,0.00016438,2]
[405890848,1771398638286,-732.97,0.00016438,2]
[405890850,1771398638296,-527.82,0.00016438,2]
[405890852,1771398638305,-500.0,0.00016438,2]
[405890854,1771398638314,-500.0,0.00016438,2]
[405890856,1771398638323,-500.0,0.00016438,2]
[405890858,1771398638332,-9069.96,0.00016438,2]
[405890860,1771398638341,-250.26138736,0.00016438,2]
[405890862,1771398638350,-787.77,0.00016438,2]
[405890864,1771398638360,-787.77,0.00016438,2]
[405890866,1771398638369,-787.77,0.00016438,2]
[405890868,1771398638378,-787.77,0.00016438,2]
[405890870,1771398638387,-787.77,0.00016438,2]
[405890872,1771398638396,-787.77,0.00016438,2]
[405890874,1771398638405,-787.77,0.00016438,2]
[405890876,1771398638415,-787.77,0.00016438,2]
[405890878,1771398638424,-787.77,0.00016438,2]
[405890880,1771398638433,-787.77,0.00016438,2]
[405890882,1771398638442,-787.77,0.00016438,2]
[405890884,1771398638451,-787.77,0.00016438,2]
[405890886,1771398638460,-787.77,0.00016438,2]
[405890888,1771398638469,-1385.78,0.00016438,2]
[405890890,1771398638478,-208.0,0.00016447,2]
[405890892,1771398638487,-223.19202288,0.00016469,2]
[405890894,1771398638497,-757.78,0.00016478,2]
[405890896,1771398638506,-151.0,0.000165,2]
[405890898,1771398638515,-3500.0,0.0001656,2]
[405890900,1771398638525,-168.0,0.00016621,2]
[405890902,1771398638535,-694.65043697,0.00016646,2]
[405890904,1771398638544,-225.31852016,0.00016675,2]
[405890906,1771398638553,-151.0,0.000167,2]
[405890908,1771398638562,-453.70949769,0.00016711,2]
[405890910,1771398638571,-151.0,0.00016712,2]
[405890912,1771398638580,-500.0,0.00016712,2]
[405890914,1771398638589,-829.55,0.00016712,2]
[405890916,1771398638599,-500.0,0.00016712,2]
[405890918,1771398638608,-500.0,0.00016712,2]
[405890920,1771398638617,-503.58594771,0.00016712,2]
[405890922,1771398638627,-500.0,0.00016712,2]
[405890924,1771398638636,-500.0,0.00016712,2]
[405890926,1771398638645,-551.7800001,0.00016712,2]
[405890928,1771398638655,-2152.44,0.00016712,2]
[405890930,1771398638664,-500.0,0.00016712,2]
[405890932,1771398638674,-500.0,0.00016712,2]
[405890934,1771398638683,-500.0,0.00016712,2]
[405890936,1771398638692,-544.50605717,0.00016712,2]
[405890938,1771398638702,-600.83677073,0.00016712,2]
[405890940,1771398638711,-555.11227406,0.00016712,2]
[405890942,1771398638720,-500.0,0.00016712,2]
[405890944,1771398638729,-500.0,0.00016712,2]
[405890946,1771398638739,-500.0,0.00016712,2]
[405890948,1771398638749,-500.0,0.00016712,2]
[405890950,1771398638758,-717.52,0.00016712,2]
[405890952,1771398638767,-1000.0,0.00016712,2]
[405890954,1771398638777,-500.0,0.00016712,2]
[405890956,1771398638787,-542.04,0.00016712,2]
[405890958,1771398638796,-1985.27,0.00016712,2]
[405890960,1771398638805,-500.0,0.00016712,2]
[405890962,1771398638814,-500.0,0.00016712,2]
[405890964,1771398638823,-761.49,0.00016712,2]
[405890966,1771398638832,-500.0,0.00016712,2]
[405890968,1771398638841,-739.18,0.00016712,2]
[405890970,1771398638851,-500.0,0.00016712,2]
[405890972,1771398638860,-1677.94,0.00016712,2]
[405890973,1771398638869,-1073.29,0.00016712,2]
[405890976,1771398638879,-500.0,0.00016712,2]
[405890977,1771398638889,-1000.0,0.00016712,2]
[405890979,1771398638898,-500.0,0.00016712,2]
[405890981,1771398638907,-500.0,0.00016712,2]
[405890983,1771398638916,-4289.2,0.00016712,2]
[405890985,1771398638925,-500.0,0.00016712,2]
[405890987,1771398638935,-500.0,0.00016712,2]
[405890989,1771398638945,-500.0,0.00016712,2]
[405890991,1771398638954,-500.0,0.00016712,2]
[405890993,1771398638963,-500.0,0.00016712,2]
[405890995,1771398638972,-500.0,0.00016712,2]
[405890997,1771398638982,-500.0,0.00016712,2]
[405890999,1771398638991,-500.0,0.00016712,2]
[405891001,1771398639000,-1434.07,0.00016712,2]
[405891003,1771398639009,-500.0,0.00016712,2]
[405891005,1771398639019,-500.0,0.00016712,2]
[405891007,1771398639028,-500.0,0.00016712,2]
[405891009,1771398639038,-1575.72,0.00016712,2]
[405891011,1771398639047,-500.0,0.00016712,2]
[405891013,1771398639057,-2299.18,0.00016712,2]
[405891015,1771398639066,-500.0,0.00016712,2]
[405891017,1771398639075,-237.45283926,0.00016712,2]
[405891019,1771398639085,-530.04,0.00016712,2]
[405891021,1771398639095,-732.97,0.00016712,2]
[405891023,1771398639105,-527.82,0.00016712,2]
[405891025,1771398639114,-500.0,0.00016712,2]
[405891027,1771398639123,-500.0,0.00016712,2]
[405891029,1771398639134,-500.0,0.00016712,2]
[405891031,1771398639145,-9069.96,0.00016712,2]
[405891033,1771398639154,-208.0,0.00016718,2]
[405891035,1771398639163,-208.0,0.00016738,2]
[405891037,1771398639172,-208.0,0.00016761,2]
[405891039,1771398639182,-920.204128,0.00016775,2]
[405891041,1771398639191,-208.0,0.00016776,2]
[405891043,1771398639200,-1136.7032971,0.0001678,2]
[405891045,1771398639211,-168.0,0.00016781,2]
[405891047,1771398639220,-800.0,0.00016782,2]
[405891049,1771398639229,-189.45,0.00016787,2]
[405891051,1771398639239,-1709.64,0.00016824,3]
[405891053,1771398639248,-427.4,0.00016824,3]
[405891055,1771398639257,-208.0,0.00016837,2]
[405891057,1771398639267,-800.0,0.00016854,2]
[405891059,1771398639276,-208.0,0.00016875,2]
[405891061,1771398639286,-151.0,0.000169,2]
[405891063,1771398639295,-185.35656565,0.00016986,2]
[405891065,1771398639305,-155.21206356,0.00016986,2]
[405891067,1771398639314,-333.64181817,0.00016986,2]
[405891069,1771398639323,-279.38171442,0.00016986,2]
[405891071,1771398639333,-261.24895514,0.00016986,2]
[405891073,1771398639342,-829.55,0.00016986,2]
[405891075,1771398639351,-514.62009771,0.00016986,2]
[405891077,1771398639360,-500.0,0.00016986,2]
[405891078,1771398639369,-500.0,0.00016986,2]
[405891081,1771398639379,-500.0,0.00016986,2]
[405891083,1771398639388,-2152.44,0.00016986,2]
[405891086,1771398639398,-500.0,0.00016986,2]
[405891088,1771398639407,-500.0,0.00016986,2]
[405891091,1771398639418,-500.0,0.00016986,2]
[405891092,1771398639427,-635.88352353,0.00016986,2]
[405891094,1771398639438,-500.0,0.00016986,2]
[405891096,1771398639447,-500.0,0.00016986,2]
[405891098,1771398639456,-717.52,0.00016986,2]
[405891100,1771398639465,-1000.0,0.00016986,2]
[405891102,1771398639474,-500.0,0.00016986,2]
[405891104,1771398639483,-542.04,0.00016986,2]
[405891106,1771398639492,-1985.27,0.00016986,2]
[405891108,1771398639501,-556.34426776,0.00016986,2]
[405891110,1771398639510,-500.0,0.00016986,2]
[405891112,1771398639519,-761.49,0.00016986,2]
[405891114,1771398639529,-500.0,0.00016986,2]
[405891116,1771398639539,-739.18,0.00016986,2]
[405891118,1771398639548,-500.0,0.00016986,2]
[405891120,1771398639556,-1677.94,0.00016986,2]
[405891122,1771398639565,-1073.29,0.00016986,2]
[405891124,1771398639575,-500.0,0.00016986,2]
[405891126,1771398639585,-1000.0,0.00016986,2]
[405891128,1771398639595,-500.0,0.00016986,2]
[405891130,1771398639604,-500.0,0.00016986,2]
[405891132,1771398639614,-4289.2,0.00016986,2]
[405891134,1771398639623,-500.0,0.00016986,2]
[405891136,1771398639633,-184.58842218,0.00016986,2]
[405891138,1771398639643,-500.0,0.00016986,2]
[405891140,1771398639652,-500.0,0.00016986,2]
[405891142,1771398639661,-500.0,0.00016986,2]
[405891144,1771398639670,-500.0,0.00016986,2]
[405891146,1771398639680,-500.0,0.00016986,2]
[405891148,1771398639689,-517.06398427,0.00016986,2]
[405891150,1771398639698,-1434.07,0.00016986,2]
[405891152,1771398639707,-500.0,0.00016986,2]
[405891154,1771398639716,-500.0,0.00016986,2]
[405891155,1771398639725,-500.0,0.00016986,2]
[405891158,1771398639737,-1575.72,0.00016986,2]
[405891159,1771398639746,-500.0,0.00016986,2]
[405891161,1771398639755,-2299.18,0.00016986,2]
[405891164,1771398639766,-500.0,0.00016986,2]
[405891165,1771398639777,-530.04,0.00016986,2]
[405891167,1771398639787,-732.97,0.00016986,2]
[405891170,1771398639797,-527.82,0.00016986,2]
[405891171,1771398639806,-500.0,0.00016986,2]
[405891173,1771398639815,-500.0,0.00016986,2]
[405891175,1771398639825,-500.0,0.00016986,2]
[405891177,1771398639834,-9069.96,0.00016986,2]
[405891179,1771398639844,-12015.43613124,0.0001699,2]
[405891181,1771398639859,-6127.28417409,0.00017,2]
[405891183,1771398639869,-168.0,0.00017013,2]
[405891196,1771398639973,-151.0,0.000171,2]
[405891198,1771398639984,-804.22421811,0.00017108,2]
[405891200,1771398639994,-168.0,0.00017109,2]
[405891202,1771398640003,-151.0,0.000172,2]
[405891204,1771398640013,-253.6327887,0.00017202,2]
[405891206,1771398640022,-296.61269457,0.00017212,2]
[405891208,1771398640032,-411.02458877,0.00017247,2]
[405891210,1771398640041,-854.82,0.0001725,3]
[405891212,1771398640050,-829.55,0.0001726,2]
[405891214,1771398640059,-500.0,0.0001726,2]
[405891216,1771398640069,-503.80678398,0.0001726,2]
[405891217,1771398640078,-500.0,0.0001726,2]
[405891219,1771398640088,-2152.44,0.0001726,2]
[405891221,1771398640097,-175.37865138,0.0001726,2]
[405891223,1771398640107,-250.49909363,0.0001726,2]
[405891225,1771398640116,-574.61724926,0.0001726,2]
[405891227,1771398640126,-500.0,0.0001726,2]
[405891229,1771398640136,-500.0,0.0001726,2]
[405891231,1771398640146,-717.52,0.0001726,2]
[405891233,1771398640157,-1000.0,0.0001726,2]
[405891235,1771398640166,-500.0,0.0001726,2]
[405891237,1771398640175,-542.04,0.0001726,2]
[405891239,1771398640184,-1985.27,0.0001726,2]
[405891241,1771398640198,-500.0,0.0001726,2]
[405891243,1771398640207,-761.49,0.0001726,2]
[405891245,1771398640217,-500.0,0.0001726,2]
[405891247,1771398640226,-739.18,0.0001726,2]
[405891249,1771398640236,-500.0,0.0001726,2]
[405891251,1771398640245,-1677.94,0.0001726,2]
[405891253,1771398640254,-1073.29,0.0001726,2]
[405891255,1771398640264,-500.0,0.0001726,2]
[405891257,1771398640274,-1000.0,0.0001726,2]
[405891259,1771398640283,-500.0,0.0001726,2]
[405891261,1771398640293,-500.0,0.0001726,2]
[405891263,1771398640302,-4289.2,0.0001726,2]
[405891265,1771398640311,-500.0,0.0001726,2]
[405891267,1771398640319,-545.70654961,0.0001726,2]
[405891269,1771398640328,-255.40754175,0.0001726,2]
[405891271,1771398640337,-500.0,0.0001726,2]
[405891273,1771398640346,-500.0,0.0001726,2]
[405891275,1771398640355,-500.0,0.0001726,2]
[405891276,1771398640364,-1434.07,0.0001726,2]
[405891278,1771398640374,-500.0,0.0001726,2]
[405891280,1771398640383,-500.0,0.0001726,2]
[405891282,1771398640392,-505.99941199,0.0001726,2]
[405891284,1771398640401,-1575.72,0.0001726,2]
[405891286,1771398640410,-500.0,0.0001726,2]
[405891288,1771398640419,-2299.18,0.0001726,2]
[405891291,1771398640429,-500.0,0.0001726,2]
[405891293,1771398640438,-530.04,0.0001726,2]
[405891294,1771398640448,-732.97,0.0001726,2]
[405891296,1771398640457,-527.82,0.0001726,2]
[405891298,1771398640466,-500.0,0.0001726,2]
[405891300,1771398640475,-500.0,0.0001726,2]
[405891302,1771398640484,-500.0,0.0001726,2]
[405891304,1771398640494,-9069.96,0.0001726,2]
[405891306,1771398640503,-242.43469052,0.00017362,17]
[405891308,1771398640512,-214.91929211,0.00017363,17]
[405891310,1771398640522,-151.0,0.000174,2]
[405891313,1771398640531,-743.5267485,0.0001741,2]
[405891314,1771398640540,-71335.09230741,0.00017499,2]
[405891316,1771398640549,-829.55,0.00017534,2]
[405891319,1771398640559,-532.47968225,0.00017534,2]
[405891320,1771398640567,-2152.44,0.00017534,2]
[405891322,1771398640576,-500.0,0.00017534,2]
[405891324,1771398640585,-500.0,0.00017534,2]
[405891325,1771398640594,-717.52,0.00017534,2]
[405891326,1771398640602,-1000.0,0.00017534,2]
[405891327,1771398640611,-500.0,0.00017534,2]
[405891328,1771398640620,-542.04,0.00017534,2]
[405891329,1771398640629,-1985.27,0.00017534,2]
[405891330,1771398640637,-500.0,0.00017534,2]
[405891331,1771398640647,-761.49,0.00017534,2]
[405891332,1771398640657,-500.0,0.00017534,2]
[405891333,1771398640666,-739.18,0.00017534,2]
[405891335,1771398640675,-500.0,0.00017534,2]
[405891337,1771398640684,-1677.94,0.00017534,2]
[405891339,1771398640693,-1073.29,0.00017534,2]
[405891341,1771398640703,-500.0,0.00017534,2]
[405891343,1771398640712,-1000.0,0.00017534,2]
[405891345,1771398640721,-500.0,0.00017534,2]
[405891347,1771398640730,-530.42672377,0.00017534,2]
[405891349,1771398640739,-4289.2,0.00017534,2]
[405891351,1771398640748,-500.0,0.00017534,2]
[405891353,1771398640757,-500.0,0.00017534,2]
[405891355,1771398640766,-500.0,0.00017534,2]
[405891357,1771398640776,-500.0,0.00017534,2]
[405891359,1771398640785,-1434.07,0.00017534,2]
[405891361,1771398640795,-500.0,0.00017534,2]
[405891363,1771398640803,-500.0,0.00017534,2]
[405891365,1771398640813,-1575.72,0.00017534,2]
[405891367,1771398640828,-500.0,0.00017534,2]
[405891369,1771398640844,-2299.18,0.00017534,2]
[405891371,1771398640853,-500.0,0.00017534,2]
[405891373,1771398640862,-530.04,0.00017534,2]
[405891375,1771398640871,-732.97,0.00017534,2]
[405891377,1771398640880,-527.82,0.00017534,2]
[405891379,1771398640889,-464.90393986,0.00017534,2]
[405891381,1771398640898,-500.0,0.00017534,2]
[405891383,1771398640907,-500.0,0.00017534,2]
[405891385,1771398640916,-9069.96,0.00017534,2]
[405891387,1771398640925,-151.0,0.000176,2]
[405891389,1771398640934,-1000.0,0.00017602,2]
[405891391,1771398640943,-1092.72739615,0.00017642,2]
[405891393,1771398640952,-829.55,0.00017808,2]
[405891395,1771398640961,-2152.44,0.00017808,2]
[405891397,1771398640970,-500.0,0.00017808,2]
[405891399,1771398640979,-500.0,0.00017808,2]
[405891401,1771398640988,-717.52,0.00017808,2]
[405891403,1771398640997,-1000.0,0.00017808,2]
[405891405,1771398641007,-500.0,0.00017808,2]
[405891407,1771398641017,-542.04,0.00017808,2]
[405891409,1771398641027,-1985.27,0.00017808,2]
[405891411,1771398641035,-500.0,0.00017808,2]
[405891413,1771398641044,-761.49,0.00017808,2]
[405891415,1771398641053,-500.0,0.00017808,2]
[405891417,1771398641062,-739.18,0.00017808,2]
[405891419,1771398641072,-500.0,0.00017808,2]
[405891421,1771398641081,-1677.94,0.00017808,2]
[405891423,1771398641089,-1073.29,0.00017808,2]
[405891425,1771398641099,-500.0,0.00017808,2]
[405891427,1771398641108,-1000.0,0.00017808,2]
[405891429,1771398641117,-500.0,0.00017808,2]
[405891431,1771398641127,-4289.2,0.00017808,2]
[405891433,1771398641136,-500.0,0.00017808,2]
[405891435,1771398641147,-500.0,0.00017808,2]
[405891436,1771398641159,-500.0,0.00017808,2]
[405891438,1771398641169,-500.0,0.00017808,2]
[405891440,1771398641179,-1434.07,0.00017808,2]
[405891443,1771398641188,-500.0,0.00017808,2]
[405891445,1771398641198,-500.0,0.00017808,2]
[405891446,1771398641208,-1575.72,0.00017808,2]
[405891448,1771398641219,-500.0,0.00017808,2]
[405891450,1771398641230,-2299.18,0.00017808,2]
[405891453,1771398641239,-500.0,0.00017808,2]
[405891455,1771398641249,-530.04,0.00017808,2]
[405891457,1771398641258,-732.97,0.00017808,2]
[405891459,1771398641268,-527.82,0.00017808,2]
[405891461,1771398641277,-500.0,0.00017808,2]
[405891463,1771398641286,-376.75893757,0.00017808,2]
[405891465,1771398641295,-9069.96,0.00017808,2]
[405891467,1771398641304,-150.0,0.00017808,2]
[405891469,1771398641313,-150.0,0.00017808,2]
[405891471,1771398641323,-9462.68055001,0.0001782,2]
[405891473,1771398641332,-139222.2015942,0.0001782,2]
[405891475,1771398641341,-205843.78136044,0.0001782,2]
[405891477,1771398641350,-117361.34133966,0.0001782,2]
[405891479,1771398641360,-38858.41427879,0.0001782,2]
[405891481,1771398641369,-496.67860341,0.00017883,2]
[405891483,1771398641379,-593.14101008,0.0001789,2]
[405891485,1771398641392,-1053.61548123,0.000179,2]
[405891486,1771398641402,-1053.61548121,0.000179,2]
[405891488,1771398641414,-1053.61548121,0.000179,2]
[405891490,1771398641425,-1053.61548121,0.000179,2]
[405891492,1771398641435,-151.0,0.000179,2]
[405891494,1771398641444,-160.98,0.00017941,2]
[405891496,1771398641452,-2173.0,0.00017941,2]
[405891498,1771398641461,-725.0,0.00017941,2]
[405891500,1771398641470,-181.0,0.00017941,2]
[405891502,1771398641480,-426.0,0.00017941,2]
[405891504,1771398641489,-426.0,0.00017941,2]
[405891506,1771398641498,-159.94276374,0.00017979,2]
[405891508,1771398641507,-263450.93483633,0.00018,2]
[405891520,1771398641601,-453.55455638,0.00018,2]
[405891687,1771398645035,-250.0,0.00015389,2]
[405891688,1771398645044,-250.0,0.00015389,2]
[405891690,1771398645053,-250.0,0.00015389,2]
[405891692,1771398645062,-250.0,0.00015389,2]
[405891694,1771398645071,-250.0,0.00015389,2]
[405891696,1771398645080,-250.0,0.00015389,2]
[405891698,1771398645089,-250.0,0.00015389,2]
[405891700,1771398645099,-250.0,0.00015389,2]
[405891702,1771398645109,-250.0,0.00015389,2]
[405891704,1771398645119,-214.52366785,0.00015389,2]
[405891706,1771398645129,-213.54655419,0.0001553,2]
[405891708,1771398645138,-200.908,0.00016438,2]
[405891710,1771398645148,-1360.12685966,0.00018,2]
[405891738,1771398645729,-40888.18715511,0.00018,2]
[405891818,1771399831838,-3783.13455195,9.801e-05,2]
[405891819,1771399831847,-841.84847605,9.9e-05,2]
[405891821,1771399831898,-1703.48550414,9.9e-05,2]
[405891822,1771399831909,-678.80057176,9.9e-05,2]
[405891823,1771399831918,-95.56387044,9.9e-05,2]
[405892501,1771399846205,-463.43612956,9.703e-05,2]
[405892502,1771399846215,-463.43612956,9.801e-05,2]
[405892503,1771399846224,-500.0,9.899e-05,2]
[405892504,1771399846233,-32.50774088,9.899e-05,2]
[405893315,1771400005742,580.775,0.00014,30]
[405893322,1771400411489,1000.0,0.00015,60]
[405893323,1771400792307,-232.97875967,8.775e-05,2]
[405893324,1771400973076,-356.31277578,8.514e-05,2]
[405893364,1771401038170,-336.00839522,8.262e-05,2]
[405893374,1771401040425,-724.86250049,8.262e-05,2]
[405893375,1771401040560,-1477.5252736,8.262e-05,2]
[405893376,1771401040569,-2538.39616931,8.345e-05,2]
[405893377,1771401040579,-1084.07855709,8.429e-05,2]
[405893398,1771401045824,-513.10235994,8.429e-05,2]
[405893409,1771401046184,-403.21525228,8.429e-05,2]
[405893410,1771401046196,-538.0,8.429e-05,2]
[405893411,1771401046206,-150.0,8.557e-05,2]
[405893412,1771401046218,-701.0,8.599e-05,2]
[405893413,1771401046228,-300.0,8.952e-05,2]
[405893414,1771401046237,-545.7537648,8.952e-05,2]
[405893415,1771401046247,-500.0,8.952e-05,2]
[405893416,1771401046256,-500.0,8.952e-05,2]
[405893417,1771401046267,-500.0,8.952e-05,2]
[405893418,1771401046279,-500.0,8.952e-05,2]
[405893419,1771401046289,-500.0,8.952e-05,2]
[405893420,1771401046301,-508.06496074,8.952e-05,2]
[405893421,1771401046314,-500.0,8.952e-05,2]
[405893422,1771401046326,-360.48438736,8.952e-05,2]
[405893423,1771401046337,-4124.02507089,8.953e-05,2]
[405893425,1771401723236,77372.445,0.00014,30]
[405893426,1771401723260,52009.95425973,0.00014,30]
[405893427,1771402152120,-689.92,7.471e-05,2]
[405893469,1771402238543,-412.47389539,7.249e-05,2]
[405893470,1771402238552,-937.47389539,7.322e-05,2]
[405893472,1771402238562,-937.47389539,7.396e-05,2]
[405893474,1771402238572,-525.0,7.471e-05,2]
[405893475,1771402238582,-150.0,7.508e-05,2]
[405893476,1771402238592,-177.0,9.508e-05,2]
[405893477,1771402238601,-1667.2486201,9.763e-05,2]
[405893478,1771402238611,-1200.0,9.995e-05,2]
[405893479,1771402238620,-500.0,9.996e-05,2]
[405893480,1771402238630,-500.0,9.996e-05,2]
[405893481,1771402238639,-492.65740329,9.996e-05,2]
[405893482,1771402238649,-300.0,9.996e-05,2]
[405893483,1771402238658,-300.0,9.996e-05,2]
[405893484,1771402238668,-300.0,9.996e-05,2]
[405893485,1771402238678,-50000.0,9.997e-05,2]
[405893486,1771402238687,-1933.71102165,0.0001,2]
[405893487,1771402238697,-290.4235303,0.0001,2]
[405893488,1771402238705,-1000.0,0.0001,2]
[405893489,1771402238715,-3458.69649257,0.0001,2]
[405893490,1771402238725,-600.0,0.00010199,2]
[405893491,1771402238735,-229.96839566,0.00010221,2]
[405893492,1771402238744,-192.56868037,0.00010221,2]
[405893493,1771402238754,-252.22097249,0.00010459,2]
[405893494,1771402238764,-182.12516302,0.00010759,2]
[405893495,1771402238774,-292.0,0.00010994,2]
[405893496,1771402238784,-230.85,0.00010997,4]
[405893497,1771402238793,-720.0,0.00011219,2]
[405893498,1771402238803,-168.095769,0.00011361,2]
[405893499,1771402238813,-204.0,0.00011508,2]
[405893500,1771402238823,-864.0,0.00012341,2]
[405893501,1771402238833,-500.0,0.00012517,2]
[405893502,1771402238842,-500.0,0.00012555,2]
[405893503,1771402238852,-320.0,0.00012558,2]
[405893504,1771402238862,-500.0,0.00012611,2]
[405893505,1771402238871,-500.0,0.00012613,2]
[405893506,1771402238882,-500.0,0.00012746,2]
[405893507,1771402238895,-500.0,0.00013071,2]
[405893508,1771402238904,-500.0,0.00013183,2]
[405893509,1771402238918,-500.0,0.00013273,2]
[405893510,1771402238927,-500.0,0.00013273,2]
[405893511,1771402238937,-500.0,0.00013273,2]
[405893512,1771402238947,-500.0,0.00013273,2]
[405893513,1771402238956,-427.71762635,0.00013273,2]
[405893514,1771402238966,-500.0,0.00013325,2]
[405893515,1771402238976,-500.0,0.00013353,2]
[405893516,1771402238986,-500.0,0.00013424,2]
[405893517,1771402238996,-500.0,0.00013468,2]
[405893518,1771402239006,-231.0,0.00013509,2]
[405893519,1771402239016,-500.0,0.00013509,2]
[405893520,1771402239025,-500.0,0.00013517,2]
[405893521,1771402239035,-1000.0,0.00013575,2]
[405893522,1771402239044,-172.01930995,0.00013589,2]
[405893523,1771402239054,-500.0,0.00013589,2]
[405893524,1771402239064,-500.0,0.00013629,2]
[405893525,1771402239074,-500.0,0.00013629,2]
[405893526,1771402239084,-1032.13746,0.00013634,2]
[405893527,1771402239093,-500.0,0.00013644,2]
[405893528,1771402239102,-300.0,0.00013673,2]
[405893529,1771402239111,-500.0,0.00013698,2]
[405893530,1771402239121,-500.0,0.00013698,2]
[405893531,1771402239130,-504.17981725,0.00013698,2]
[405893532,1771402239139,-500.0,0.00013698,2]
[405893533,1771402239149,-500.0,0.00013698,2]
[405893534,1771402239159,-500.0,0.00013699,2]
[405893535,1771402239168,-347.692184,0.00013699,2]